[Event "Titled Tuesday Blitz June 27 Late 2023"]
[White "Toncheva, Nadya"]
[Black "Ward, Ieuan C"]
[WhiteFideId "2924056"]
[BlackFideId "406627"]
[WhiteElo "2502"]
[BlackElo "2286"]
[Result "1-0"]
[Round "2"]
[TimeControl "180+2"]
[Date "2023.06.27"]
[WhiteClock "0:02:11"]
[BlackClock "0:02:33"]
[Board "152"]

1. d4 {[%clk 0:03:00]}  Nf6 {[%clk 0:02:59]} 2. c4 {[%clk 0:03:01]}  e6 {[%clk 0:03:00]} 3. Nc3 {[%clk 0:03:01]}  b6 {[%clk 0:03:00]} 4. e4 {[%clk 0:03:00]}  Bb4 {[%clk 0:03:00]} 5. Bd3 {[%clk 0:02:58]}  Bb7 {[%clk 0:03:01]} 6. f3 {[%clk 0:02:58]}  O-O {[%clk 0:03:00]} 7. Ne2 {[%clk 0:02:58]}  d5 {[%clk 0:02:59]} 8. cxd5 {[%clk 0:02:56]}  exd5 {[%clk 0:02:59]} 9. e5 {[%clk 0:02:57]}  Nfd7 {[%clk 0:02:58]} 10. O-O {[%clk 0:02:54]}  g6 {[%clk 0:02:58]} 11. Bh6 {[%clk 0:02:53]}  Re8 {[%clk 0:02:58]} 12. f4 {[%clk 0:02:52]}  c5 {[%clk 0:02:57]} 13. Kh1 {[%clk 0:02:52]}  cxd4 {[%clk 0:02:56]} 14. Nxd4 {[%clk 0:02:52]}  Bxc3 {[%clk 0:02:55]} 15. bxc3 {[%clk 0:02:52]}  Nc6 {[%clk 0:02:55]} 16. Qg4 {[%clk 0:02:44]}  Nc5 {[%clk 0:02:52]} 17. Bb5 {[%clk 0:02:39]}  Qc8 {[%clk 0:02:46]} 18. Qg3 {[%clk 0:02:33]}  a6 {[%clk 0:02:44]} 19. Bxc6 {[%clk 0:02:28]}  Bxc6 {[%clk 0:02:45]} 20. f5 {[%clk 0:02:25]}  Ne4 {[%clk 0:02:43]} 21. Qf4 {[%clk 0:02:18]}  Bb5 {[%clk 0:02:33]} 22. fxg6 {[%clk 0:02:11]} 1-0


[Site "https://www.chess.com"]

[Event "Titled Tuesday Blitz June 27 Late 2023"]
[White "Vaglio Munoz, Jaime"]
[Black "ArchibaldCerveza29"]
[WhiteFideId "6500145"]
[WhiteElo "2280"]
[BlackElo "2500"]
[Result "0-1"]
[Round "2"]
[TimeControl "180+2"]
[Date "2023.06.27"]
[WhiteClock "0:01:28"]
[BlackClock "0:00:21"]
[Board "153"]

1. Nf3 {[%clk 0:03:00]}  d5 {[%clk 0:02:57]} 2. c4 {[%clk 0:03:00]}  e6 {[%clk 0:02:57]} 3. b3 {[%clk 0:03:00]}  b6 {[%clk 0:02:56]} 4. Bb2 {[%clk 0:03:00]}  Bb7 {[%clk 0:02:56]} 5. g3 {[%clk 0:03:00]}  c5 {[%clk 0:02:53]} 6. cxd5 {[%clk 0:02:59]}  exd5 {[%clk 0:02:54]} 7. Bg2 {[%clk 0:02:58]}  Nf6 {[%clk 0:02:54]} 8. d4 {[%clk 0:02:58]}  Nc6 {[%clk 0:02:47]} 9. O-O {[%clk 0:02:58]}  Be7 {[%clk 0:02:45]} 10. Nc3 {[%clk 0:02:57]}  O-O {[%clk 0:02:44]} 11. Rc1 {[%clk 0:02:56]}  Rc8 {[%clk 0:02:25]} 12. Re1 {[%clk 0:02:55]}  Ne4 {[%clk 0:01:57]} 13. dxc5 {[%clk 0:02:48]}  Bxc5 {[%clk 0:01:58]} 14. e3 {[%clk 0:02:42]}  Bb4 {[%clk 0:01:29]} 15. Re2 {[%clk 0:02:40]}  Ne7 {[%clk 0:01:16]} 16. Nxe4 {[%clk 0:02:30]}  dxe4 {[%clk 0:01:17]} 17. Nd4 {[%clk 0:02:30]}  Qd5 {[%clk 0:00:51]} 18. a3 {[%clk 0:02:27]}  Bd6 {[%clk 0:00:47]} 19. Rd2 {[%clk 0:02:26]}  Rfd8 {[%clk 0:00:39]} 20. b4 {[%clk 0:02:23]}  h5 {[%clk 0:00:32]} 21. Rxc8 {[%clk 0:02:13]}  Nxc8 {[%clk 0:00:28]} 22. Nb5 {[%clk 0:02:07]}  Qxb5 {[%clk 0:00:27]} 23. a4 {[%clk 0:01:49]}  Qxb4 {[%clk 0:00:25]} 24. Rd4 {[%clk 0:01:45]}  Qxb2 {[%clk 0:00:23]} 25. Qxh5 {[%clk 0:01:44]}  Be7 {[%clk 0:00:17]} 26. Rxd8+ {[%clk 0:01:37]}  Bxd8 {[%clk 0:00:18]} 27. Qg5 {[%clk 0:01:33]}  Bxg5 {[%clk 0:00:17]} 28. h4 {[%clk 0:01:33]}  Qc1+ {[%clk 0:00:18]} 29. Kh2 {[%clk 0:01:33]}  Bf6 {[%clk 0:00:18]} 30. h5 {[%clk 0:01:32]}  Qd2 {[%clk 0:00:19]} 31. Kg1 {[%clk 0:01:32]}  Nd6 {[%clk 0:00:19]} 32. g4 {[%clk 0:01:31]}  Nc4 {[%clk 0:00:19]} 33. h6 {[%clk 0:01:30]}  Bh4 {[%clk 0:00:20]} 34. Kh2 {[%clk 0:01:29]}  Qxf2 {[%clk 0:00:20]} 35. h7+ {[%clk 0:01:30]}  Kxh7 {[%clk 0:00:20]} 36. Kh1 {[%clk 0:01:30]}  Bg3 {[%clk 0:00:19]} 37. g5 {[%clk 0:01:30]}  Qe1+ {[%clk 0:00:20]} 38. Bf1 {[%clk 0:01:28]}  Qxf1# {[%clk 0:00:21]} 0-1


[Site "https://www.chess.com"]

[Event "Titled Tuesday Blitz June 27 Late 2023"]
[White "Mathieu, Phileas"]
[Black "Bolanos, Fernando"]
[WhiteFideId "36048410"]
[BlackFideId "3304094"]
[WhiteElo "2498"]
[BlackElo "2277"]
[Result "1-0"]
[Round "2"]
[TimeControl "180+2"]
[Date "2023.06.27"]
[WhiteClock "0:00:16"]
[BlackClock "0:00:11"]
[Board "154"]

1. b3 {[%clk 0:03:00]}  d5 {[%clk 0:02:57]} 2. Bb2 {[%clk 0:03:01]}  Bf5 {[%clk 0:02:58]} 3. d3 {[%clk 0:03:01]}  Nf6 {[%clk 0:02:58]} 4. Nd2 {[%clk 0:03:02]}  e6 {[%clk 0:02:59]} 5. g3 {[%clk 0:03:02]}  Be7 {[%clk 0:02:59]} 6. Bg2 {[%clk 0:03:03]}  c6 {[%clk 0:03:00]} 7. e4 {[%clk 0:03:04]}  Bg6 {[%clk 0:03:00]} 8. Ne2 {[%clk 0:03:02]}  O-O {[%clk 0:02:58]} 9. O-O {[%clk 0:03:01]}  h6 {[%clk 0:02:58]} 10. f4 {[%clk 0:03:02]}  Bh7 {[%clk 0:02:59]} 11. Kh1 {[%clk 0:02:50]}  a5 {[%clk 0:02:59]} 12. a4 {[%clk 0:02:49]}  Nbd7 {[%clk 0:02:58]} 13. h3 {[%clk 0:02:45]}  dxe4 {[%clk 0:02:47]} 14. Nxe4 {[%clk 0:02:32]}  Nxe4 {[%clk 0:02:45]} 15. dxe4 {[%clk 0:02:33]}  Nc5 {[%clk 0:02:44]} 16. Nc3 {[%clk 0:02:33]}  Qxd1 {[%clk 0:02:32]} 17. Raxd1 {[%clk 0:02:34]}  Rfd8 {[%clk 0:02:32]} 18. Kg1 {[%clk 0:02:23]}  Bf6 {[%clk 0:02:30]} 19. e5 {[%clk 0:02:17]}  Be7 {[%clk 0:02:31]} 20. Rxd8+ {[%clk 0:02:14]}  Rxd8 {[%clk 0:02:30]} 21. Rf2 {[%clk 0:02:15]}  Na6 {[%clk 0:02:26]} 22. Kf1 {[%clk 0:02:04]}  Nb4 {[%clk 0:01:50]} 23. Be4 {[%clk 0:01:58]}  Bxe4 {[%clk 0:01:51]} 24. Nxe4 {[%clk 0:01:59]}  Rd1+ {[%clk 0:01:51]} 25. Kg2 {[%clk 0:01:54]}  Kf8 {[%clk 0:01:45]} 26. Bc3 {[%clk 0:01:40]}  Nd5 {[%clk 0:01:40]} 27. Bxa5 {[%clk 0:01:34]}  Rc1 {[%clk 0:01:27]} 28. c4 {[%clk 0:01:13]}  Ne3+ {[%clk 0:01:05]} 29. Kf3 {[%clk 0:01:11]}  Nf5 {[%clk 0:01:06]} 30. Rd2 {[%clk 0:00:53]}  Rb1 {[%clk 0:00:59]} 31. Rd3 {[%clk 0:00:52]}  Rxb3 {[%clk 0:01:00]} 32. Rxb3 {[%clk 0:00:48]}  Nd4+ {[%clk 0:01:00]} 33. Ke3 {[%clk 0:00:46]}  Nxb3 {[%clk 0:01:01]} 34. Bb6 {[%clk 0:00:44]}  f5 {[%clk 0:00:53]} 35. Nd6 {[%clk 0:00:36]}  Bxd6 {[%clk 0:00:37]} 36. exd6 {[%clk 0:00:36]}  Ke8 {[%clk 0:00:38]} 37. Bd4 {[%clk 0:00:20]}  g6 {[%clk 0:00:17]} 38. c5 {[%clk 0:00:19]}  Kd7 {[%clk 0:00:16]} 39. Kd3 {[%clk 0:00:19]}  Nc1+ {[%clk 0:00:11]} 40. Kc2 {[%clk 0:00:18]}  Ne2 {[%clk 0:00:11]} 41. Bf2 {[%clk 0:00:18]}  e5 {[%clk 0:00:06]} 42. Kd2 {[%clk 0:00:17]}  Nd4 {[%clk 0:00:04]} 43. Bxd4 {[%clk 0:00:18]}  exd4 {[%clk 0:00:04]} 44. a5 {[%clk 0:00:19]}  g5 {[%clk 0:00:04]} 45. fxg5 {[%clk 0:00:17]}  hxg5 {[%clk 0:00:04]} 46. Kd3 {[%clk 0:00:17]}  g4 {[%clk 0:00:02]} 47. hxg4 {[%clk 0:00:16]}  fxg4 {[%clk 0:00:03]} 48. Kxd4 {[%clk 0:00:16]}  Ke6 {[%clk 0:00:03]} 49. Ke4 {[%clk 0:00:17]}  Kf6 {[%clk 0:00:04]} 50. Kf4 {[%clk 0:00:17]}  Ke6 {[%clk 0:00:05]} 51. Kxg4 {[%clk 0:00:17]}  Kf6 {[%clk 0:00:05]} 52. Kh5 {[%clk 0:00:16]}  Kf5 {[%clk 0:00:05]} 53. g4+ {[%clk 0:00:16]}  Kf6 {[%clk 0:00:06]} 54. g5+ {[%clk 0:00:17]}  Kf7 {[%clk 0:00:06]} 55. g6+ {[%clk 0:00:17]}  Kf6 {[%clk 0:00:07]} 56. Kh6 {[%clk 0:00:18]}  Ke6 {[%clk 0:00:08]} 57. g7 {[%clk 0:00:18]}  Kd7 {[%clk 0:00:08]} 58. g8=Q {[%clk 0:00:17]}  b5 {[%clk 0:00:09]} 59. Qf7+ {[%clk 0:00:16]}  Kd8 {[%clk 0:00:09]} 60. Qe7+ {[%clk 0:00:16]}  Kc8 {[%clk 0:00:10]} 61. d7+ {[%clk 0:00:16]}  Kb7 {[%clk 0:00:10]} 62. d8=Q+ {[%clk 0:00:17]}  Ka6 {[%clk 0:00:11]} 63. Qa8# {[%clk 0:00:16]} 1-0


[Site "https://www.chess.com"]

[Event "Titled Tuesday Blitz June 27 Late 2023"]
[White "Cluke86"]
[Black "Osmak, Yuliia"]
[BlackFideId "14101602"]
[WhiteElo "2249"]
[BlackElo "2493"]
[Result "1-0"]
[Round "2"]
[TimeControl "180+2"]
[Date "2023.06.27"]
[WhiteClock "0:00:26"]
[BlackClock "0:00:00"]
[Board "157"]

1. e4 {[%clk 0:02:55]}  c5 {[%clk 0:02:59]} 2. Nc3 {[%clk 0:02:54]}  Nc6 {[%clk 0:02:57]} 3. f4 {[%clk 0:02:53]}  a6 {[%clk 0:02:54]} 4. Nf3 {[%clk 0:02:49]}  b5 {[%clk 0:02:54]} 5. a4 {[%clk 0:02:46]}  b4 {[%clk 0:02:53]} 6. Nd5 {[%clk 0:02:46]}  e6 {[%clk 0:02:51]} 7. Ne3 {[%clk 0:02:45]}  Bb7 {[%clk 0:02:46]} 8. c3 {[%clk 0:02:43]}  d6 {[%clk 0:02:36]} 9. Bc4 {[%clk 0:02:33]}  Nf6 {[%clk 0:02:34]} 10. d3 {[%clk 0:02:31]}  Be7 {[%clk 0:02:32]} 11. O-O {[%clk 0:02:30]}  O-O {[%clk 0:02:32]} 12. e5 {[%clk 0:02:24]}  dxe5 {[%clk 0:02:27]} 13. fxe5 {[%clk 0:02:25]}  Nd7 {[%clk 0:02:19]} 14. d4 {[%clk 0:02:22]}  cxd4 {[%clk 0:02:15]} 15. cxd4 {[%clk 0:02:23]}  Nb6 {[%clk 0:02:13]} 16. Bd3 {[%clk 0:02:16]}  a5 {[%clk 0:02:06]} 17. b3 {[%clk 0:02:16]}  Nd5 {[%clk 0:02:01]} 18. Qc2 {[%clk 0:01:56]}  g6 {[%clk 0:01:49]} 19. Ng4 {[%clk 0:01:54]}  Nc3 {[%clk 0:01:41]} 20. Be3 {[%clk 0:01:48]}  Rc8 {[%clk 0:01:34]} 21. Qf2 {[%clk 0:01:44]}  h5 {[%clk 0:01:25]} 22. Nf6+ {[%clk 0:01:32]}  Bxf6 {[%clk 0:01:23]} 23. exf6 {[%clk 0:01:33]}  Qxf6 {[%clk 0:01:20]} 24. Bg5 {[%clk 0:01:31]}  Qg7 {[%clk 0:01:18]} 25. Rae1 {[%clk 0:01:27]}  Nd5 {[%clk 0:00:43]} 26. Bc4 {[%clk 0:01:12]}  Nce7 {[%clk 0:00:37]} 27. Qd2 {[%clk 0:00:54]}  Nf5 {[%clk 0:00:35]} 28. h3 {[%clk 0:00:38]}  Rfe8 {[%clk 0:00:23]} 29. g4 {[%clk 0:00:35]}  hxg4 {[%clk 0:00:22]} 30. hxg4 {[%clk 0:00:36]}  Nd6 {[%clk 0:00:22]} 31. Ne5 {[%clk 0:00:35]}  Nxc4 {[%clk 0:00:11]} 32. bxc4 {[%clk 0:00:36]}  f6 {[%clk 0:00:11]} 33. Bh6 {[%clk 0:00:33]}  Qh7 {[%clk 0:00:05]} 34. cxd5 {[%clk 0:00:30]}  fxe5 {[%clk 0:00:05]} 35. dxe5 {[%clk 0:00:27]}  Bxd5 {[%clk 0:00:05]} 36. Rf6 {[%clk 0:00:27]}  Re7 {[%clk 0:00:03]} 37. Qg5 {[%clk 0:00:26]}  Kh8 {[%clk 0:00:00]} 38. Rxg6 {[%clk 0:00:26]} 1-0


[Site "https://www.chess.com"]

[Event "Titled Tuesday Blitz June 27 Late 2023"]
[White "Urbina Perez, Juan Antonio"]
[Black "Broca Jimenez, Fernando"]
[WhiteFideId "2217368"]
[BlackFideId "5104742"]
[WhiteElo "2482"]
[BlackElo "2225"]
[Result "1-0"]
[Round "2"]
[TimeControl "180+2"]
[Date "2023.06.27"]
[WhiteClock "0:00:20"]
[BlackClock "0:00:06"]
[Board "161"]

1. e4 {[%clk 0:03:00]}  e5 {[%clk 0:02:57]} 2. Nf3 {[%clk 0:03:00]}  Nc6 {[%clk 0:02:56]} 3. Bc4 {[%clk 0:03:01]}  Nf6 {[%clk 0:02:55]} 4. d3 {[%clk 0:03:01]}  Bc5 {[%clk 0:02:54]} 5. Bg5 {[%clk 0:03:01]}  d6 {[%clk 0:02:54]} 6. a4 {[%clk 0:03:01]}  a5 {[%clk 0:02:52]} 7. O-O {[%clk 0:02:57]}  Bg4 {[%clk 0:02:52]} 8. c3 {[%clk 0:02:55]}  h6 {[%clk 0:02:49]} 9. Bh4 {[%clk 0:02:55]}  g5 {[%clk 0:02:49]} 10. Bg3 {[%clk 0:02:55]}  Nh5 {[%clk 0:02:49]} 11. Nbd2 {[%clk 0:02:53]}  Qf6 {[%clk 0:02:27]} 12. Qb3 {[%clk 0:02:46]}  Rb8 {[%clk 0:02:09]} 13. Bd5 {[%clk 0:02:37]}  O-O {[%clk 0:01:57]} 14. Rfe1 {[%clk 0:02:35]}  Ne7 {[%clk 0:01:39]} 15. Bc4 {[%clk 0:02:13]}  Ng6 {[%clk 0:01:27]} 16. d4 {[%clk 0:01:56]}  Bb6 {[%clk 0:01:24]} 17. Be2 {[%clk 0:01:34]}  Nhf4 {[%clk 0:01:19]} 18. Bxf4 {[%clk 0:01:34]}  Nxf4 {[%clk 0:01:15]} 19. Bf1 {[%clk 0:01:24]}  Rfe8 {[%clk 0:00:59]} 20. dxe5 {[%clk 0:01:15]}  dxe5 {[%clk 0:00:57]} 21. Rac1 {[%clk 0:00:53]}  Red8 {[%clk 0:00:50]} 22. c4 {[%clk 0:00:52]}  Bc5 {[%clk 0:00:41]} 23. Qc3 {[%clk 0:00:43]}  Bb4 {[%clk 0:00:27]} 24. Qb3 {[%clk 0:00:40]}  c6 {[%clk 0:00:14]} 25. h3 {[%clk 0:00:39]}  Bh5 {[%clk 0:00:12]} 26. Rc2 {[%clk 0:00:38]}  Rd7 {[%clk 0:00:10]} 27. g4 {[%clk 0:00:35]}  Bg6 {[%clk 0:00:09]} 28. Bg2 {[%clk 0:00:34]}  Rbd8 {[%clk 0:00:09]} 29. Nf1 {[%clk 0:00:34]}  Nxh3+ {[%clk 0:00:08]} 30. Bxh3 {[%clk 0:00:33]}  Rd3 {[%clk 0:00:08]} 31. Rc3 {[%clk 0:00:26]}  Qxf3 {[%clk 0:00:08]} 32. Bg2 {[%clk 0:00:22]}  Rxc3 {[%clk 0:00:06]} 33. bxc3 {[%clk 0:00:20]}  Qxc3 {[%clk 0:00:07]} 34. Qxc3 {[%clk 0:00:20]}  Bxc3 {[%clk 0:00:07]} 35. Rb1 {[%clk 0:00:20]}  Bb4 {[%clk 0:00:07]} 36. Ne3 {[%clk 0:00:19]}  Rd2 {[%clk 0:00:08]} 37. Nf5 {[%clk 0:00:19]}  Bc5 {[%clk 0:00:08]} 38. Rf1 {[%clk 0:00:15]}  Bxf5 {[%clk 0:00:08]} 39. exf5 {[%clk 0:00:15]}  Bd4 {[%clk 0:00:08]} 40. Be4 {[%clk 0:00:14]}  Ra2 {[%clk 0:00:08]} 41. Kg2 {[%clk 0:00:14]}  Rxa4 {[%clk 0:00:09]} 42. Rb1 {[%clk 0:00:14]}  Rb4 {[%clk 0:00:09]} 43. Rxb4 {[%clk 0:00:14]}  axb4 {[%clk 0:00:10]} 44. Bb1 {[%clk 0:00:13]}  c5 {[%clk 0:00:08]} 45. f3 {[%clk 0:00:14]}  f6 {[%clk 0:00:08]} 46. Kf1 {[%clk 0:00:15]}  Kf8 {[%clk 0:00:07]} 47. Ke2 {[%clk 0:00:16]}  Ke7 {[%clk 0:00:06]} 48. Kd3 {[%clk 0:00:17]}  Kd6 {[%clk 0:00:06]} 49. Bc2 {[%clk 0:00:18]}  Kc6 {[%clk 0:00:07]} 50. Ba4+ {[%clk 0:00:19]}  Kb6 {[%clk 0:00:06]} 51. Ke4 {[%clk 0:00:19]}  Ka5 {[%clk 0:00:06]} 52. Bb3 {[%clk 0:00:20]}  b5 {[%clk 0:00:06]} 53. Kd5 {[%clk 0:00:21]}  bxc4 {[%clk 0:00:05]} 54. Kxc4 {[%clk 0:00:21]}  Kb6 {[%clk 0:00:04]} 55. Ba4 {[%clk 0:00:20]}  Kc7 {[%clk 0:00:03]} 56. Kd5 {[%clk 0:00:19]}  Kb6 {[%clk 0:00:02]} 57. Bb3 {[%clk 0:00:19]}  Kb5 {[%clk 0:00:02]} 58. Bc4+ {[%clk 0:00:19]}  Ka4 {[%clk 0:00:03]} 59. Ke6 {[%clk 0:00:19]}  Ka3 {[%clk 0:00:04]} 60. Kxf6 {[%clk 0:00:19]}  b3 {[%clk 0:00:05]} 61. Ke6 {[%clk 0:00:18]}  b2 {[%clk 0:00:05]} 62. Bd3 {[%clk 0:00:19]}  c4 {[%clk 0:00:04]} 63. Bb1 {[%clk 0:00:19]}  Kb3 {[%clk 0:00:04]} 64. f6 {[%clk 0:00:19]}  c3 {[%clk 0:00:05]} 65. f7 {[%clk 0:00:20]}  Bc5 {[%clk 0:00:05]} 66. Kxe5 {[%clk 0:00:19]}  Ka3 {[%clk 0:00:06]} 67. Kd5 {[%clk 0:00:18]}  Bb4 {[%clk 0:00:06]} 68. Kc4 {[%clk 0:00:18]}  c2 {[%clk 0:00:06]} 69. Bxc2 {[%clk 0:00:17]}  Ka2 {[%clk 0:00:07]} 70. Kd5 {[%clk 0:00:16]}  Bf8 {[%clk 0:00:07]} 71. Ke6 {[%clk 0:00:15]}  b1=Q {[%clk 0:00:06]} 72. Bxb1+ {[%clk 0:00:15]}  Kxb1 {[%clk 0:00:07]} 73. Kd7 {[%clk 0:00:15]}  Kc2 {[%clk 0:00:07]} 74. Ke8 {[%clk 0:00:16]}  Bb4 {[%clk 0:00:07]} 75. f8=Q {[%clk 0:00:17]}  Bxf8 {[%clk 0:00:07]} 76. Kxf8 {[%clk 0:00:18]}  Kd3 {[%clk 0:00:07]} 77. Kg7 {[%clk 0:00:19]}  Ke3 {[%clk 0:00:08]} 78. Kxh6 {[%clk 0:00:20]}  Kxf3 {[%clk 0:00:08]} 79. Kxg5 {[%clk 0:00:19]}  Ke4 {[%clk 0:00:09]} 80. Kf6 {[%clk 0:00:19]}  Kf4 {[%clk 0:00:10]} 81. g5 {[%clk 0:00:19]}  Ke4 {[%clk 0:00:06]} 82. g6 {[%clk 0:00:20]} 1-0


[Site "https://www.chess.com"]

[Event "Titled Tuesday Blitz June 27 Late 2023"]
[White "marik_spb"]
[Black "Kornyukov, Alexey"]
[BlackFideId "4150457"]
[WhiteElo "2480"]
[BlackElo "2217"]
[Result "0-1"]
[Round "2"]
[TimeControl "180+2"]
[Date "2023.06.27"]
[WhiteClock "0:00:00"]
[BlackClock "0:00:09"]
[Board "163"]

1. d4 {[%clk 0:02:58]}  d5 {[%clk 0:02:59]} 2. c4 {[%clk 0:02:58]}  e6 {[%clk 0:03:00]} 3. Nf3 {[%clk 0:02:57]}  c6 {[%clk 0:03:00]} 4. g3 {[%clk 0:02:57]}  dxc4 {[%clk 0:02:59]} 5. Bg2 {[%clk 0:02:57]}  b5 {[%clk 0:02:59]} 6. Nc3 {[%clk 0:02:51]}  Bb7 {[%clk 0:02:45]} 7. a4 {[%clk 0:02:42]}  a6 {[%clk 0:02:38]} 8. O-O {[%clk 0:02:39]}  Nf6 {[%clk 0:02:37]} 9. Ng5 {[%clk 0:02:30]}  Qc8 {[%clk 0:02:20]} 10. e4 {[%clk 0:01:58]}  Bb4 {[%clk 0:01:47]} 11. e5 {[%clk 0:00:55]}  Nd5 {[%clk 0:01:25]} 12. Qh5 {[%clk 0:00:33]}  g6 {[%clk 0:00:55]} 13. Qh6 {[%clk 0:00:33]}  Nxc3 {[%clk 0:00:36]} 14. bxc3 {[%clk 0:00:25]}  Bxc3 {[%clk 0:00:35]} 15. Qg7 {[%clk 0:00:20]}  Rf8 {[%clk 0:00:34]} 16. Ba3 {[%clk 0:00:17]}  b4 {[%clk 0:00:33]} 17. Rac1 {[%clk 0:00:17]}  bxa3 {[%clk 0:00:21]} 18. Rxc3 {[%clk 0:00:17]}  c5 {[%clk 0:00:19]} 19. d5 {[%clk 0:00:13]}  Bxd5 {[%clk 0:00:15]} 20. Bxd5 {[%clk 0:00:13]}  exd5 {[%clk 0:00:15]} 21. e6 {[%clk 0:00:14]}  Nc6 {[%clk 0:00:14]} 22. exf7+ {[%clk 0:00:13]}  Kd7 {[%clk 0:00:14]} 23. Rd1 {[%clk 0:00:12]}  Nd4 {[%clk 0:00:13]} 24. Rxd4 {[%clk 0:00:07]}  cxd4 {[%clk 0:00:13]} 25. Qxd4 {[%clk 0:00:08]}  Qc6 {[%clk 0:00:13]} 26. Qg4+ {[%clk 0:00:05]}  Kc7 {[%clk 0:00:13]} 27. Ne6+ {[%clk 0:00:05]}  Kb6 {[%clk 0:00:12]} 28. Qd4+ {[%clk 0:00:04]}  Kb7 {[%clk 0:00:11]} 29. Nxf8 {[%clk 0:00:03]}  Rxf8 {[%clk 0:00:10]} 30. Qg7 {[%clk 0:00:00]}  Qd6 {[%clk 0:00:09]} 0-1


[Site "https://www.chess.com"]

[Event "Titled Tuesday Blitz June 27 Late 2023"]
[White "Fernandez Hernandez, Gerardo"]
[Black "Toniutti, Ezio"]
[WhiteFideId "2207400"]
[BlackFideId "113034"]
[WhiteElo "2215"]
[BlackElo "2477"]
[Result "0-1"]
[Round "2"]
[TimeControl "180+2"]
[Date "2023.06.27"]
[WhiteClock "0:00:02"]
[BlackClock "0:01:34"]
[Board "164"]

1. e4 {[%clk 0:03:00]}  e5 {[%clk 0:03:00]} 2. Nf3 {[%clk 0:03:00]}  Nc6 {[%clk 0:03:00]} 3. Bc4 {[%clk 0:03:00]}  Nf6 {[%clk 0:03:00]} 4. Ng5 {[%clk 0:03:01]}  d5 {[%clk 0:02:59]} 5. exd5 {[%clk 0:03:01]}  Na5 {[%clk 0:02:59]} 6. Bb5+ {[%clk 0:03:02]}  c6 {[%clk 0:02:59]} 7. dxc6 {[%clk 0:03:03]}  bxc6 {[%clk 0:02:59]} 8. Bd3 {[%clk 0:03:03]}  Nd5 {[%clk 0:02:58]} 9. Nf3 {[%clk 0:03:00]}  Bd6 {[%clk 0:02:56]} 10. O-O {[%clk 0:02:48]}  Nf4 {[%clk 0:02:48]} 11. Re1 {[%clk 0:02:40]}  Nxd3 {[%clk 0:02:38]} 12. cxd3 {[%clk 0:02:41]}  O-O {[%clk 0:02:38]} 13. Nc3 {[%clk 0:02:30]}  Re8 {[%clk 0:02:37]} 14. b4 {[%clk 0:02:09]}  Nb7 {[%clk 0:02:26]} 15. Rb1 {[%clk 0:01:57]}  f6 {[%clk 0:02:24]} 16. Ne4 {[%clk 0:01:39]}  Bf8 {[%clk 0:02:23]} 17. b5 {[%clk 0:01:15]}  c5 {[%clk 0:02:13]} 18. Qc2 {[%clk 0:01:09]}  Be6 {[%clk 0:02:10]} 19. a4 {[%clk 0:01:02]}  Qd5 {[%clk 0:02:10]} 20. Ba3 {[%clk 0:00:54]}  Rac8 {[%clk 0:02:08]} 21. Nc3 {[%clk 0:00:46]}  Qd7 {[%clk 0:02:06]} 22. Ne4 {[%clk 0:00:44]}  Red8 {[%clk 0:02:05]} 23. Re3 {[%clk 0:00:32]}  h6 {[%clk 0:02:02]} 24. h4 {[%clk 0:00:28]}  Kh8 {[%clk 0:02:01]} 25. h5 {[%clk 0:00:23]}  c4 {[%clk 0:01:48]} 26. dxc4 {[%clk 0:00:17]}  Rxc4 {[%clk 0:01:45]} 27. Qd1 {[%clk 0:00:16]}  Bxa3 {[%clk 0:01:44]} 28. Nh4 {[%clk 0:00:12]}  Bc5 {[%clk 0:01:39]} 29. Rg3 {[%clk 0:00:11]}  Bf5 {[%clk 0:01:37]} 30. Nxf5 {[%clk 0:00:11]}  Qxf5 {[%clk 0:01:36]} 31. Qe2 {[%clk 0:00:02]}  Rxe4 {[%clk 0:01:34]} 0-1


[Site "https://www.chess.com"]

[Event "Titled Tuesday Blitz June 27 Late 2023"]
[White "Vila Dupla, Aurelio"]
[Black "Kovalevsky, Stanislav"]
[WhiteFideId "2203383"]
[BlackFideId "13508598"]
[WhiteElo "2211"]
[BlackElo "2474"]
[Result "0-1"]
[Round "2"]
[TimeControl "180+2"]
[Date "2023.06.27"]
[WhiteClock "0:00:00"]
[BlackClock "0:00:07"]
[Board "166"]

1. e4 {[%clk 0:03:00]}  e6 {[%clk 0:02:58]} 2. d4 {[%clk 0:02:59]}  d5 {[%clk 0:02:59]} 3. e5 {[%clk 0:03:00]}  c5 {[%clk 0:02:59]} 4. dxc5 {[%clk 0:02:59]}  Nc6 {[%clk 0:02:58]} 5. Nf3 {[%clk 0:02:59]}  Bxc5 {[%clk 0:02:58]} 6. Bd3 {[%clk 0:02:59]}  Nge7 {[%clk 0:02:58]} 7. O-O {[%clk 0:02:59]}  Ng6 {[%clk 0:02:58]} 8. Qe2 {[%clk 0:02:59]}  Nd4 {[%clk 0:02:54]} 9. Nxd4 {[%clk 0:02:55]}  Bxd4 {[%clk 0:02:54]} 10. Bxg6 {[%clk 0:02:55]}  hxg6 {[%clk 0:02:54]} 11. c3 {[%clk 0:02:48]}  Qh4 {[%clk 0:02:45]} 12. h3 {[%clk 0:02:47]}  Bb6 {[%clk 0:02:45]} 13. Be3 {[%clk 0:02:37]}  Qd8 {[%clk 0:02:40]} 14. Nd2 {[%clk 0:02:29]}  Bd7 {[%clk 0:02:40]} 15. Nf3 {[%clk 0:02:11]}  a6 {[%clk 0:02:33]} 16. Bxb6 {[%clk 0:02:10]}  Qxb6 {[%clk 0:02:33]} 17. Nd4 {[%clk 0:02:10]}  Bb5 {[%clk 0:02:29]} 18. Nxb5 {[%clk 0:02:10]}  Qxb5 {[%clk 0:02:30]} 19. Qxb5+ {[%clk 0:02:08]}  axb5 {[%clk 0:02:31]} 20. a3 {[%clk 0:02:08]}  Kd7 {[%clk 0:02:24]} 21. Rad1 {[%clk 0:02:07]}  Ra4 {[%clk 0:02:23]} 22. Rfe1 {[%clk 0:02:01]}  Kc6 {[%clk 0:02:20]} 23. f3 {[%clk 0:02:01]}  Kc5 {[%clk 0:02:09]} 24. Rb1 {[%clk 0:01:41]}  Rh5 {[%clk 0:01:58]} 25. Kf2 {[%clk 0:01:39]}  Ra8 {[%clk 0:01:52]} 26. Re2 {[%clk 0:01:32]}  Kc4 {[%clk 0:01:44]} 27. Rd1 {[%clk 0:01:28]}  Kb3 {[%clk 0:01:43]} 28. Rd4 {[%clk 0:01:27]}  Ra4 {[%clk 0:01:43]} 29. Rxa4 {[%clk 0:01:20]}  bxa4 {[%clk 0:01:43]} 30. f4 {[%clk 0:01:16]}  Rh4 {[%clk 0:01:39]} 31. Kf3 {[%clk 0:01:14]}  b5 {[%clk 0:01:25]} 32. Rd2 {[%clk 0:01:13]}  g5 {[%clk 0:01:12]} 33. g3 {[%clk 0:00:43]}  Rxh3 {[%clk 0:01:07]} 34. fxg5 {[%clk 0:00:43]}  Rh1 {[%clk 0:01:03]} 35. Kg4 {[%clk 0:00:43]}  Re1 {[%clk 0:00:59]} 36. Rf2 {[%clk 0:00:42]}  Re4+ {[%clk 0:00:54]} 37. Kh5 {[%clk 0:00:39]}  Rxe5 {[%clk 0:00:42]} 38. Rxf7 {[%clk 0:00:39]}  Kxb2 {[%clk 0:00:41]} 39. Rxg7 {[%clk 0:00:39]}  Kxa3 {[%clk 0:00:37]} 40. Rb7 {[%clk 0:00:38]}  d4 {[%clk 0:00:37]} 41. cxd4 {[%clk 0:00:36]}  Rd5 {[%clk 0:00:37]} 42. Kh6 {[%clk 0:00:34]}  b4 {[%clk 0:00:37]} 43. g6 {[%clk 0:00:33]}  Rxd4 {[%clk 0:00:37]} 44. g7 {[%clk 0:00:33]}  Rg4 {[%clk 0:00:37]} 45. Rb5 {[%clk 0:00:22]}  Rxg3 {[%clk 0:00:14]} 46. Rg5 {[%clk 0:00:20]}  Rxg5 {[%clk 0:00:14]} 47. Kxg5 {[%clk 0:00:21]}  b3 {[%clk 0:00:14]} 48. g8=Q {[%clk 0:00:21]}  b2 {[%clk 0:00:14]} 49. Qxe6 {[%clk 0:00:15]}  b1=Q {[%clk 0:00:13]} 50. Qd6+ {[%clk 0:00:08]}  Ka2 {[%clk 0:00:09]} 51. Kh6 {[%clk 0:00:07]}  Qb3 {[%clk 0:00:06]} 52. Kh7 {[%clk 0:00:05]}  a3 {[%clk 0:00:05]} 53. Qd2+ {[%clk 0:00:04]}  Kb1 {[%clk 0:00:06]} 54. Qe1+ {[%clk 0:00:03]}  Kb2 {[%clk 0:00:06]} 55. Qe5+ {[%clk 0:00:02]}  Qc3 {[%clk 0:00:07]} 56. Qb5+ {[%clk 0:00:02]}  Kc1 {[%clk 0:00:06]} 57. Qf1+ {[%clk 0:00:00]}  Kc2 {[%clk 0:00:07]} 0-1


[Site "https://www.chess.com"]